[Event "December 5 Late 2023"]
[Site "https://www.chess.com"]
[Date "2023.12.05"]
[Round "3"]
[White "Della Morte, German"]
[Black "Maltsevskaya, Aleksandra"]
[Result "1-0"]
[Board "90"]
[TimeControl "180+1"]
[WhiteFideId "113522"]
[BlackFideId "24174041"]
[WhiteElo "2423"]
[BlackElo "2616"]
[WhiteTeam "ARG"]
[BlackTeam "POL"]
[WhiteClock "0:02:26"]
[BlackClock "0:00:00"]

1. e4 {[%clk 0:02:58]}  c5 {[%clk 0:02:56]} 2. Nc3 {[%clk 0:02:58]}  Nc6 {[%clk 0:02:55]} 3. g3 {[%clk 0:02:59]}  g6 {[%clk 0:02:54]} 4. Bg2 {[%clk 0:02:59]}  Bg7 {[%clk 0:02:54]} 5. d3 {[%clk 0:03:00]}  e6 {[%clk 0:02:54]} 6. f4 {[%clk 0:03:00]}  b6 {[%clk 0:02:55]} 7. Nf3 {[%clk 0:03:00]}  Nge7 {[%clk 0:02:55]} 8. O-O {[%clk 0:03:00]}  d5 {[%clk 0:02:56]} 9. e5 {[%clk 0:03:01]}  Bb7 {[%clk 0:02:48]} 10. Ne2 {[%clk 0:03:01]}  Qc7 {[%clk 0:02:46]} 11. c3 {[%clk 0:03:01]}  h6 {[%clk 0:02:46]} 12. d4 {[%clk 0:03:01]}  g5 {[%clk 0:02:45]} 13. fxg5 {[%clk 0:03:01]}  hxg5 {[%clk 0:02:46]} 14. Nxg5 {[%clk 0:03:01]}  Nf5 {[%clk 0:02:46]} 15. Bh3 {[%clk 0:02:58]}  O-O-O {[%clk 0:02:36]} 16. Bxf5 {[%clk 0:02:58]}  exf5 {[%clk 0:02:36]} 17. Rxf5 {[%clk 0:02:58]}  cxd4 {[%clk 0:02:35]} 18. cxd4 {[%clk 0:02:56]}  Bxe5 {[%clk 0:01:16]} 19. dxe5 {[%clk 0:02:53]}  d4 {[%clk 0:01:16]} 20. Nxf7 {[%clk 0:02:48]}  Qd7 {[%clk 0:01:11]} 21. Nd6+ {[%clk 0:02:46]}  Kb8 {[%clk 0:01:10]} 22. Rf7 {[%clk 0:02:46]}  Qh3 {[%clk 0:01:07]} 23. Rxb7+ {[%clk 0:02:46]}  Ka8 {[%clk 0:01:08]} 24. Bf4 {[%clk 0:02:40]}  Qxh2+ {[%clk 0:01:07]} 25. Kf1 {[%clk 0:02:39]}  Qh3+ {[%clk 0:00:28]} 26. Ke1 {[%clk 0:02:38]}  d3 {[%clk 0:00:21]} 27. Qxd3 {[%clk 0:02:34]}  Qh1+ {[%clk 0:00:22]} 28. Kd2 {[%clk 0:02:32]}  Qxa1 {[%clk 0:00:22]} 29. Rc7 {[%clk 0:02:28]}  Qxb2+ {[%clk 0:00:00]} 30. Ke3 {[%clk 0:02:26]} 1-0

[Event "December 5 Late 2023"]
[Site "https://www.chess.com"]
[Date "2023.12.05"]
[Round "3"]
[White "Mendes Aaron Reeve"]
[Black "Lopusiewicz, Piotr"]
[Result "1-0"]
[Board "91"]
[TimeControl "180+1"]
[WhiteFideId "25954938"]
[BlackFideId "1116029"]
[WhiteElo "2616"]
[BlackElo "2428"]
[WhiteTeam "CAN"]
[BlackTeam "POL"]
[WhiteClock "0:01:51"]
[BlackClock "0:00:50"]

1. b3 {[%clk 0:03:00]}  d5 {[%clk 0:02:59]} 2. Nf3 {[%clk 0:02:59]}  Bf5 {[%clk 0:02:58]} 3. Bb2 {[%clk 0:02:58]}  e6 {[%clk 0:02:58]} 4. d3 {[%clk 0:02:57]}  h6 {[%clk 0:02:47]} 5. Nbd2 {[%clk 0:02:54]}  Nf6 {[%clk 0:02:46]} 6. g3 {[%clk 0:02:53]}  Be7 {[%clk 0:02:45]} 7. Bg2 {[%clk 0:02:52]}  O-O {[%clk 0:02:45]} 8. O-O {[%clk 0:02:52]}  c5 {[%clk 0:02:41]} 9. Re1 {[%clk 0:02:51]}  Bh7 {[%clk 0:02:40]} 10. e4 {[%clk 0:02:50]}  d4 {[%clk 0:02:31]} 11. Ne5 {[%clk 0:02:48]}  Nbd7 {[%clk 0:02:15]} 12. Nxd7 {[%clk 0:02:45]}  Qxd7 {[%clk 0:02:15]} 13. f4 {[%clk 0:02:45]}  e5 {[%clk 0:02:12]} 14. fxe5 {[%clk 0:02:34]}  Ng4 {[%clk 0:02:11]} 15. Bh3 {[%clk 0:02:31]}  h5 {[%clk 0:02:04]} 16. Rf1 {[%clk 0:02:30]}  Bg5 {[%clk 0:02:01]} 17. Nf3 {[%clk 0:02:26]}  Be3+ {[%clk 0:01:57]} 18. Kg2 {[%clk 0:02:24]}  Qe7 {[%clk 0:01:49]} 19. Bxg4 {[%clk 0:02:19]}  hxg4 {[%clk 0:01:49]} 20. Nh4 {[%clk 0:02:18]}  Qxe5 {[%clk 0:01:45]} 21. Qxg4 {[%clk 0:02:16]}  a5 {[%clk 0:01:38]} 22. Nf5 {[%clk 0:02:15]}  Ra6 {[%clk 0:01:30]} 23. Nxe3 {[%clk 0:02:13]}  Rg6 {[%clk 0:01:27]} 24. Nc4 {[%clk 0:02:11]}  Qc7 {[%clk 0:01:21]} 25. Qf4 {[%clk 0:02:09]}  Qc8 {[%clk 0:01:20]} 26. c3 {[%clk 0:02:05]}  f5 {[%clk 0:01:09]} 27. cxd4 {[%clk 0:02:03]}  Rg4 {[%clk 0:01:05]} 28. Qe5 {[%clk 0:01:55]}  f4 {[%clk 0:01:05]} 29. Qd5+ {[%clk 0:01:54]}  Kh8 {[%clk 0:01:05]} 30. Ne5 {[%clk 0:01:54]}  f3+ {[%clk 0:00:58]} 31. Rxf3 {[%clk 0:01:52]}  Rxf3 {[%clk 0:00:58]} 32. Kxf3 {[%clk 0:01:52]}  Qf8+ {[%clk 0:00:50]} 33. Kxg4 {[%clk 0:01:51]} 1-0

[Event "December 5 Late 2023"]
[Site "https://www.chess.com"]
[Date "2023.12.05"]
[Round "3"]
[White "Poltorak, Sebastian"]
[Black "Stalri"]
[Result "1-0"]
[Board "93"]
[TimeControl "180+1"]
[WhiteFideId "1199498"]
[WhiteElo "2608"]
[BlackElo "2417"]
[WhiteTeam "POL"]
[WhiteClock "0:00:36"]
[BlackClock "0:00:16"]

1. e4 {[%clk 0:03:00]}  Nc6 {[%clk 0:02:58]} 2. Nc3 {[%clk 0:02:59]}  d6 {[%clk 0:02:57]} 3. d4 {[%clk 0:02:55]}  Nf6 {[%clk 0:02:57]} 4. Nge2 {[%clk 0:02:51]}  e5 {[%clk 0:02:52]} 5. f3 {[%clk 0:02:46]}  g6 {[%clk 0:02:51]} 6. Bg5 {[%clk 0:02:46]}  Bg7 {[%clk 0:02:50]} 7. Qd2 {[%clk 0:02:44]}  O-O {[%clk 0:02:50]} 8. O-O-O {[%clk 0:02:41]}  a6 {[%clk 0:02:32]} 9. h4 {[%clk 0:02:38]}  h5 {[%clk 0:02:18]} 10. Nd5 {[%clk 0:02:35]}  exd4 {[%clk 0:02:07]} 11. Nxd4 {[%clk 0:02:07]}  Nxd4 {[%clk 0:01:57]} 12. Nxf6+ {[%clk 0:02:06]}  Bxf6 {[%clk 0:01:54]} 13. Bxf6 {[%clk 0:02:07]}  Qxf6 {[%clk 0:01:54]} 14. Qxd4 {[%clk 0:02:07]}  Qxd4 {[%clk 0:01:43]} 15. Rxd4 {[%clk 0:02:08]}  Be6 {[%clk 0:01:43]} 16. Be2 {[%clk 0:01:22]}  Kg7 {[%clk 0:01:43]} 17. Rhd1 {[%clk 0:01:22]}  Rfe8 {[%clk 0:01:42]} 18. b3 {[%clk 0:01:21]}  Re7 {[%clk 0:01:37]} 19. Bc4 {[%clk 0:01:22]}  Rae8 {[%clk 0:01:34]} 20. Bxe6 {[%clk 0:01:22]}  fxe6 {[%clk 0:01:34]} 21. c4 {[%clk 0:01:19]}  Kf6 {[%clk 0:01:31]} 22. Kd2 {[%clk 0:01:12]}  g5 {[%clk 0:01:26]} 23. hxg5+ {[%clk 0:01:12]}  Kxg5 {[%clk 0:01:27]} 24. Ke3 {[%clk 0:01:12]}  e5 {[%clk 0:01:26]} 25. Rd5 {[%clk 0:01:07]}  Rg8 {[%clk 0:01:25]} 26. c5 {[%clk 0:01:05]}  dxc5 {[%clk 0:00:55]} 27. Rxc5 {[%clk 0:01:04]}  c6 {[%clk 0:00:52]} 28. Rd6 {[%clk 0:00:59]}  Rg6 {[%clk 0:00:49]} 29. f4+ {[%clk 0:00:58]}  Kh6 {[%clk 0:00:47]} 30. Rxe5 {[%clk 0:00:47]}  Rg7 {[%clk 0:00:31]} 31. Ree6 {[%clk 0:00:46]}  Rxe6 {[%clk 0:00:29]} 32. Rxe6+ {[%clk 0:00:46]}  Kh7 {[%clk 0:00:30]} 33. Kf3 {[%clk 0:00:46]}  Rd7 {[%clk 0:00:30]} 34. e5 {[%clk 0:00:39]}  Kg7 {[%clk 0:00:30]} 35. Rd6 {[%clk 0:00:35]}  Re7 {[%clk 0:00:29]} 36. Ke4 {[%clk 0:00:35]}  h4 {[%clk 0:00:28]} 37. f5 {[%clk 0:00:35]}  Kf8 {[%clk 0:00:27]} 38. Rf6+ {[%clk 0:00:35]}  Kg8 {[%clk 0:00:27]} 39. e6 {[%clk 0:00:35]}  Kg7 {[%clk 0:00:22]} 40. Rg6+ {[%clk 0:00:35]}  Kh7 {[%clk 0:00:22]} 41. Ke5 {[%clk 0:00:36]}  Re8 {[%clk 0:00:18]} 42. Rg4 {[%clk 0:00:35]}  Kh6 {[%clk 0:00:18]} 43. f6 {[%clk 0:00:36]}  Kh5 {[%clk 0:00:17]} 44. Rf4 {[%clk 0:00:36]}  Kg6 {[%clk 0:00:17]} 45. f7 {[%clk 0:00:35]}  Rf8 {[%clk 0:00:17]} 46. e7 {[%clk 0:00:36]}  Rxf7 {[%clk 0:00:17]} 47. e8=Q {[%clk 0:00:36]}  Kh6 {[%clk 0:00:16]} 48. Qxf7 {[%clk 0:00:36]} 1-0

[Event "December 5 Late 2023"]
[Site "https://www.chess.com"]
[Date "2023.12.05"]
[Round "3"]
[White "Omelja, Artem"]
[Black "Balla, Tamas-Kristof"]
[Result "1-0"]
[Board "94"]
[TimeControl "180+1"]
[WhiteFideId "14119846"]
[BlackFideId "1208497"]
[WhiteElo "2608"]
[BlackElo "2415"]
[WhiteTeam "UKR"]
[BlackTeam "ROU"]
[WhiteClock "0:01:08"]
[BlackClock "0:00:17"]

1. d4 {[%clk 0:02:59]}  d5 {[%clk 0:02:56]} 2. c4 {[%clk 0:03:00]}  e6 {[%clk 0:02:56]} 3. Nf3 {[%clk 0:03:00]}  c5 {[%clk 0:02:57]} 4. cxd5 {[%clk 0:03:00]}  exd5 {[%clk 0:02:57]} 5. g3 {[%clk 0:03:00]}  Nc6 {[%clk 0:02:51]} 6. Bg2 {[%clk 0:03:00]}  Nf6 {[%clk 0:02:48]} 7. O-O {[%clk 0:03:01]}  Be6 {[%clk 0:02:45]} 8. Nc3 {[%clk 0:02:58]}  Be7 {[%clk 0:02:40]} 9. Be3 {[%clk 0:02:56]}  c4 {[%clk 0:02:36]} 10. Ne5 {[%clk 0:02:56]}  O-O {[%clk 0:02:33]} 11. Nxc4 {[%clk 0:02:56]}  dxc4 {[%clk 0:02:27]} 12. d5 {[%clk 0:02:57]}  Nxd5 {[%clk 0:02:18]} 13. Nxd5 {[%clk 0:02:58]}  Bd6 {[%clk 0:02:11]} 14. Qa4 {[%clk 0:02:50]}  Ne5 {[%clk 0:01:59]} 15. Rfd1 {[%clk 0:02:47]}  Ng4 {[%clk 0:01:42]} 16. Bf4 {[%clk 0:02:28]}  Bxf4 {[%clk 0:01:37]} 17. Nxf4 {[%clk 0:02:27]}  Qb6 {[%clk 0:01:34]} 18. e3 {[%clk 0:02:28]}  Rad8 {[%clk 0:01:26]} 19. Qc2 {[%clk 0:02:10]}  Ne5 {[%clk 0:01:15]} 20. Qc3 {[%clk 0:02:07]}  Nd3 {[%clk 0:01:13]} 21. Nxd3 {[%clk 0:02:00]}  cxd3 {[%clk 0:01:12]} 22. Be4 {[%clk 0:01:58]}  Bd5 {[%clk 0:01:03]} 23. Bxd3 {[%clk 0:01:44]}  Bf3 {[%clk 0:01:03]} 24. Rd2 {[%clk 0:01:43]}  Qe6 {[%clk 0:00:56]} 25. Bf1 {[%clk 0:01:41]}  Rd5 {[%clk 0:00:50]} 26. Rc1 {[%clk 0:01:32]}  Rh5 {[%clk 0:00:49]} 27. Qc4 {[%clk 0:01:27]}  Qh6 {[%clk 0:00:34]} 28. h4 {[%clk 0:01:23]}  g5 {[%clk 0:00:34]} 29. Rd4 {[%clk 0:01:20]}  g4 {[%clk 0:00:31]} 30. Rf4 {[%clk 0:01:13]}  Qg6 {[%clk 0:00:24]} 31. Bd3 {[%clk 0:01:09]}  Qb6 {[%clk 0:00:20]} 32. Rxg4+ {[%clk 0:01:08]}  Bxg4 {[%clk 0:00:17]} 33. Qxg4+ {[%clk 0:01:08]} 1-0

[Event "December 5 Late 2023"]
[Site "https://www.chess.com"]
[Date "2023.12.05"]
[Round "3"]
[White "Blanco Diez, David"]
[Black "Dyachuk, Artem"]
[Result "0-1"]
[Board "96"]
[TimeControl "180+1"]
[WhiteFideId "32032927"]
[BlackFideId "34107924"]
[WhiteElo "2414"]
[BlackElo "2602"]
[WhiteTeam "ESP"]
[BlackTeam "UKR"]
[WhiteClock "0:00:00"]
[BlackClock "0:01:16"]

1. e4 {[%clk 0:03:00]}  e5 {[%clk 0:02:57]} 2. Nf3 {[%clk 0:03:01]}  Nc6 {[%clk 0:02:58]} 3. Bc4 {[%clk 0:02:58]}  Nf6 {[%clk 0:02:56]} 4. d3 {[%clk 0:02:46]}  h6 {[%clk 0:02:55]} 5. c3 {[%clk 0:02:40]}  d6 {[%clk 0:02:55]} 6. h3 {[%clk 0:02:37]}  g5 {[%clk 0:02:50]} 7. Nbd2 {[%clk 0:02:31]}  Bg7 {[%clk 0:02:49]} 8. Nf1 {[%clk 0:02:32]}  Be6 {[%clk 0:02:43]} 9. Ne3 {[%clk 0:02:28]}  Qd7 {[%clk 0:02:40]} 10. b3 {[%clk 0:02:05]}  O-O-O {[%clk 0:02:36]} 11. a4 {[%clk 0:02:02]}  d5 {[%clk 0:02:36]} 12. exd5 {[%clk 0:01:58]}  Nxd5 {[%clk 0:02:37]} 13. Nxd5 {[%clk 0:01:56]}  Bxd5 {[%clk 0:02:38]} 14. O-O {[%clk 0:01:02]}  Bxc4 {[%clk 0:02:36]} 15. bxc4 {[%clk 0:01:00]}  Qxd3 {[%clk 0:02:37]} 16. Be3 {[%clk 0:00:56]}  Qxc4 {[%clk 0:02:34]} 17. Qc2 {[%clk 0:00:52]}  Qd3 {[%clk 0:02:13]} 18. Qb3 {[%clk 0:00:47]}  Qd5 {[%clk 0:02:11]} 19. Qc2 {[%clk 0:00:46]}  e4 {[%clk 0:02:09]} 20. Nd4 {[%clk 0:00:37]}  Nxd4 {[%clk 0:02:01]} 21. cxd4 {[%clk 0:00:38]}  f5 {[%clk 0:01:59]} 22. Rfc1 {[%clk 0:00:32]}  Rd7 {[%clk 0:01:59]} 23. a5 {[%clk 0:00:20]}  f4 {[%clk 0:01:58]} 24. Bd2 {[%clk 0:00:21]}  Bxd4 {[%clk 0:01:52]} 25. Bc3 {[%clk 0:00:18]}  e3 {[%clk 0:01:51]} 26. Bxd4 {[%clk 0:00:16]}  Qxd4 {[%clk 0:01:52]} 27. fxe3 {[%clk 0:00:16]}  Qxe3+ {[%clk 0:01:49]} 28. Kh1 {[%clk 0:00:17]}  f3 {[%clk 0:01:47]} 29. a6 {[%clk 0:00:16]}  Qe2 {[%clk 0:01:30]} 30. axb7+ {[%clk 0:00:15]}  Kb8 {[%clk 0:01:29]} 31. gxf3 {[%clk 0:00:07]}  Qxf3+ {[%clk 0:01:26]} 32. Qg2 {[%clk 0:00:03]}  Qxg2+ {[%clk 0:01:24]} 33. Kxg2 {[%clk 0:00:04]}  Rd6 {[%clk 0:01:19]} 34. Re1 {[%clk 0:00:02]}  Kxb7 {[%clk 0:01:19]} 35. Re7 {[%clk 0:00:01]}  Rhd8 {[%clk 0:01:17]} 36. Rc1 {[%clk 0:00:00]}  R8d7 {[%clk 0:01:16]} 0-1

[Event "December 5 Late 2023"]
[Site "https://www.chess.com"]
[Date "2023.12.05"]
[Round "3"]
[White "Matthes, Aaron"]
[Black "Toropov, Pavel"]
[Result "0-1"]
[Board "99"]
[TimeControl "180+1"]
[WhiteFideId "16227310"]
[BlackFideId "24129178"]
[WhiteElo "2411"]
[BlackElo "2591"]
[WhiteTeam "GER"]
[BlackTeam "RUS"]
[WhiteClock "0:00:06"]
[BlackClock "0:00:08"]

1. Nf3 {[%clk 0:03:00]}  d5 {[%clk 0:02:59]} 2. g3 {[%clk 0:03:01]}  Nf6 {[%clk 0:02:59]} 3. Bg2 {[%clk 0:03:02]}  Bg4 {[%clk 0:02:57]} 4. O-O {[%clk 0:03:01]}  Nbd7 {[%clk 0:02:54]} 5. d4 {[%clk 0:03:01]}  e6 {[%clk 0:02:53]} 6. b3 {[%clk 0:03:02]}  Bd6 {[%clk 0:02:50]} 7. Bb2 {[%clk 0:03:03]}  Bxf3 {[%clk 0:02:49]} 8. Bxf3 {[%clk 0:03:02]}  O-O {[%clk 0:02:50]} 9. Nd2 {[%clk 0:03:01]}  Qe7 {[%clk 0:02:50]} 10. c4 {[%clk 0:02:59]}  Ba3 {[%clk 0:02:47]} 11. Bc3 {[%clk 0:02:55]}  Bb4 {[%clk 0:02:44]} 12. Bb2 {[%clk 0:02:55]}  c6 {[%clk 0:02:38]} 13. Bg2 {[%clk 0:02:48]}  Rfd8 {[%clk 0:02:29]} 14. e3 {[%clk 0:02:48]}  e5 {[%clk 0:02:27]} 15. cxd5 {[%clk 0:02:44]}  Nxd5 {[%clk 0:02:23]} 16. Nc4 {[%clk 0:02:32]}  exd4 {[%clk 0:02:02]} 17. Qxd4 {[%clk 0:02:32]}  N7f6 {[%clk 0:02:01]} 18. Qh4 {[%clk 0:02:16]}  h6 {[%clk 0:01:09]} 19. Rad1 {[%clk 0:02:04]}  Rac8 {[%clk 0:00:58]} 20. a3 {[%clk 0:01:57]}  Bc3 {[%clk 0:00:35]} 21. Bc1 {[%clk 0:01:24]}  b5 {[%clk 0:00:28]} 22. Nd2 {[%clk 0:01:12]}  Nb6 {[%clk 0:00:28]} 23. Nf3 {[%clk 0:01:00]}  Rxd1 {[%clk 0:00:27]} 24. Rxd1 {[%clk 0:01:01]}  Rd8 {[%clk 0:00:27]} 25. Rxd8+ {[%clk 0:00:55]}  Qxd8 {[%clk 0:00:28]} 26. Nd4 {[%clk 0:00:55]}  c5 {[%clk 0:00:26]} 27. Ne2 {[%clk 0:00:50]}  Qd1+ {[%clk 0:00:26]} 28. Bf1 {[%clk 0:00:50]}  Nbd5 {[%clk 0:00:24]} 29. Nxc3 {[%clk 0:00:46]}  Nxc3 {[%clk 0:00:24]} 30. Bb2 {[%clk 0:00:46]}  Nfe4 {[%clk 0:00:21]} 31. Bxc3 {[%clk 0:00:40]}  Nxc3 {[%clk 0:00:20]} 32. Kg2 {[%clk 0:00:30]}  Qxb3 {[%clk 0:00:20]} 33. Qd8+ {[%clk 0:00:29]}  Kh7 {[%clk 0:00:20]} 34. Bd3+ {[%clk 0:00:24]}  g6 {[%clk 0:00:20]} 35. Qf6 {[%clk 0:00:18]}  Qd5+ {[%clk 0:00:18]} 36. Kg1 {[%clk 0:00:18]}  Kg8 {[%clk 0:00:16]} 37. Bxg6 {[%clk 0:00:15]}  Ne2+ {[%clk 0:00:15]} 38. Kf1 {[%clk 0:00:14]}  Qd1+ {[%clk 0:00:15]} 39. Kg2 {[%clk 0:00:14]}  Qg1+ {[%clk 0:00:15]} 40. Kf3 {[%clk 0:00:15]}  fxg6 {[%clk 0:00:07]} 41. Qxg6+ {[%clk 0:00:14]}  Kf8 {[%clk 0:00:08]} 42. Qxh6+ {[%clk 0:00:15]}  Ke7 {[%clk 0:00:08]} 43. Kxe2 {[%clk 0:00:15]}  Qc1 {[%clk 0:00:07]} 44. Qg5+ {[%clk 0:00:15]}  Kd6 {[%clk 0:00:07]} 45. h4 {[%clk 0:00:15]}  c4 {[%clk 0:00:07]} 46. h5 {[%clk 0:00:14]}  Qc2+ {[%clk 0:00:08]} 47. Kf3 {[%clk 0:00:14]}  c3 {[%clk 0:00:08]} 48. h6 {[%clk 0:00:13]}  Qd1+ {[%clk 0:00:09]} 49. Kg2 {[%clk 0:00:13]}  c2 {[%clk 0:00:09]} 50. Qd8+ {[%clk 0:00:13]}  Kc6 {[%clk 0:00:09]} 51. h7 {[%clk 0:00:06]}  Qxd8 {[%clk 0:00:08]} 0-1

[Event "December 5 Late 2023"]
[Site "https://www.chess.com"]
[Date "2023.12.05"]
[Round "3"]
[White "Uryupin, Igor"]
[Black "Espinoza Villanueva, Rodrigo"]
[Result "1-0"]
[Board "102"]
[TimeControl "180+1"]
[WhiteFideId "4182529"]
[BlackFideId "5140188"]
[WhiteElo "2406"]
[BlackElo "2589"]
[WhiteTeam "RUS"]
[BlackTeam "MEX"]
[WhiteClock "0:00:33"]
[BlackClock "0:00:14"]

1. d4 {[%clk 0:03:00]}  Nf6 {[%clk 0:02:49]} 2. Nf3 {[%clk 0:03:00]}  g6 {[%clk 0:02:50]} 3. h4 {[%clk 0:02:54]}  d5 {[%clk 0:02:49]} 4. Bg5 {[%clk 0:02:52]}  Bg7 {[%clk 0:02:48]} 5. Bxf6 {[%clk 0:02:52]}  Bxf6 {[%clk 0:02:48]} 6. h5 {[%clk 0:02:52]}  c5 {[%clk 0:02:46]} 7. e3 {[%clk 0:02:52]}  Nc6 {[%clk 0:02:45]} 8. hxg6 {[%clk 0:02:50]}  hxg6 {[%clk 0:02:45]} 9. Rxh8+ {[%clk 0:02:49]}  Bxh8 {[%clk 0:02:46]} 10. c3 {[%clk 0:02:48]}  Bg4 {[%clk 0:02:45]} 11. Be2 {[%clk 0:02:47]}  Qb6 {[%clk 0:02:43]} 12. Qb3 {[%clk 0:02:46]}  O-O-O {[%clk 0:02:39]} 13. Qxb6 {[%clk 0:02:44]}  axb6 {[%clk 0:02:40]} 14. Nbd2 {[%clk 0:02:43]}  Bg7 {[%clk 0:02:35]} 15. Ng5 {[%clk 0:02:41]}  Bxe2 {[%clk 0:02:32]} 16. Kxe2 {[%clk 0:02:40]}  Rf8 {[%clk 0:02:30]} 17. Rh1 {[%clk 0:02:37]}  Nd8 {[%clk 0:02:20]} 18. Rh7 {[%clk 0:02:36]}  Rg8 {[%clk 0:02:19]} 19. f3 {[%clk 0:02:33]}  e6 {[%clk 0:02:13]} 20. f4 {[%clk 0:02:32]}  Kd7 {[%clk 0:02:11]} 21. Ndf3 {[%clk 0:02:30]}  Ke7 {[%clk 0:02:11]} 22. Ne5 {[%clk 0:02:27]}  Bxe5 {[%clk 0:02:09]} 23. fxe5 {[%clk 0:02:27]}  Rf8 {[%clk 0:02:06]} 24. a4 {[%clk 0:02:20]}  Nc6 {[%clk 0:02:05]} 25. Kd3 {[%clk 0:02:07]}  Na5 {[%clk 0:02:05]} 26. e4 {[%clk 0:01:57]}  cxd4 {[%clk 0:01:55]} 27. exd5 {[%clk 0:01:50]}  exd5 {[%clk 0:01:53]} 28. e6 {[%clk 0:01:47]}  dxc3 {[%clk 0:01:30]} 29. bxc3 {[%clk 0:01:45]}  Nc4 {[%clk 0:01:26]} 30. Kd4 {[%clk 0:01:39]}  Nb2 {[%clk 0:01:24]} 31. Ke5 {[%clk 0:01:28]}  Nd3+ {[%clk 0:01:11]} 32. Kxd5 {[%clk 0:01:28]}  Nf4+ {[%clk 0:01:10]} 33. Ke5 {[%clk 0:01:24]}  Nd3+ {[%clk 0:01:10]} 34. Kd4 {[%clk 0:01:19]}  Nc5 {[%clk 0:01:03]} 35. exf7 {[%clk 0:01:11]}  Nxa4 {[%clk 0:00:59]} 36. Rg7 {[%clk 0:01:01]}  Nc5 {[%clk 0:00:55]} 37. Rxg6 {[%clk 0:00:58]}  Rd8+ {[%clk 0:00:55]} 38. Ke5 {[%clk 0:00:53]}  Nd7+ {[%clk 0:00:47]} 39. Kf5 {[%clk 0:00:50]}  Nf8 {[%clk 0:00:45]} 40. Rxb6 {[%clk 0:00:48]}  Rd5+ {[%clk 0:00:42]} 41. Kg4 {[%clk 0:00:45]}  Rd7 {[%clk 0:00:42]} 42. Kh5 {[%clk 0:00:39]}  Rc7 {[%clk 0:00:36]} 43. g4 {[%clk 0:00:37]}  Rxc3 {[%clk 0:00:20]} 44. Rxb7+ {[%clk 0:00:36]}  Kd8 {[%clk 0:00:20]} 45. Rb8+ {[%clk 0:00:34]}  Ke7 {[%clk 0:00:14]} 46. Re8+ {[%clk 0:00:33]} 1-0

[Event "December 5 Late 2023"]
[Site "https://www.chess.com"]
[Date "2023.12.05"]
[Round "3"]
[White "Asish Panda"]
[Black "Hoffmann, Asa"]
[Result "0-1"]
[Board "103"]
[TimeControl "180+1"]
[WhiteFideId "45012458"]
[BlackFideId "2001470"]
[WhiteElo "2587"]
[BlackElo "2405"]
[WhiteTeam "IND"]
[BlackTeam "USA"]
[WhiteClock "0:00:00"]
[BlackClock "0:00:32"]

1. e4 {[%clk 0:03:00]}  d6 {[%clk 0:02:39]} 2. g3 {[%clk 0:02:59]}  Nf6 {[%clk 0:02:35]} 3. Bg2 {[%clk 0:02:57]}  c6 {[%clk 0:02:31]} 4. Ne2 {[%clk 0:02:57]}  e5 {[%clk 0:02:30]} 5. O-O {[%clk 0:02:56]}  Be7 {[%clk 0:02:26]} 6. d4 {[%clk 0:02:56]}  Nbd7 {[%clk 0:02:24]} 7. c4 {[%clk 0:02:54]}  a5 {[%clk 0:02:19]} 8. Nbc3 {[%clk 0:02:52]}  O-O {[%clk 0:02:17]} 9. h3 {[%clk 0:02:49]}  exd4 {[%clk 0:02:12]} 10. Nxd4 {[%clk 0:02:48]}  Nc5 {[%clk 0:02:11]} 11. b3 {[%clk 0:02:39]}  Re8 {[%clk 0:02:11]} 12. a3 {[%clk 0:02:35]}  Bf8 {[%clk 0:02:09]} 13. Re1 {[%clk 0:02:32]}  g6 {[%clk 0:01:56]} 14. Bf4 {[%clk 0:02:12]}  Ne6 {[%clk 0:01:52]} 15. Be3 {[%clk 0:02:10]}  Bg7 {[%clk 0:01:48]} 16. Qd2 {[%clk 0:02:04]}  Nc5 {[%clk 0:01:47]} 17. Bg5 {[%clk 0:01:45]}  Qc7 {[%clk 0:01:38]} 18. Rab1 {[%clk 0:01:06]}  Bd7 {[%clk 0:01:29]} 19. b4 {[%clk 0:01:04]}  axb4 {[%clk 0:01:29]} 20. axb4 {[%clk 0:01:05]}  Ne6 {[%clk 0:01:29]} 21. Be3 {[%clk 0:01:05]}  Nxd4 {[%clk 0:01:27]} 22. Bxd4 {[%clk 0:01:05]}  Be6 {[%clk 0:01:27]} 23. c5 {[%clk 0:00:50]}  dxc5 {[%clk 0:01:23]} 24. bxc5 {[%clk 0:00:50]}  Rad8 {[%clk 0:01:22]} 25. Qe3 {[%clk 0:00:46]}  Bc4 {[%clk 0:01:12]} 26. Red1 {[%clk 0:00:36]}  Qe7 {[%clk 0:01:01]} 27. Na4 {[%clk 0:00:21]}  Bb5 {[%clk 0:00:58]} 28. Nc3 {[%clk 0:00:19]}  Ba6 {[%clk 0:00:57]} 29. Kh2 {[%clk 0:00:13]}  h5 {[%clk 0:00:56]} 30. e5 {[%clk 0:00:11]}  Nd7 {[%clk 0:00:52]} 31. Qf4 {[%clk 0:00:10]}  Nxe5 {[%clk 0:00:50]} 32. Bxe5 {[%clk 0:00:10]}  Qxe5 {[%clk 0:00:47]} 33. Rxd8 {[%clk 0:00:09]}  Rxd8 {[%clk 0:00:47]} 34. Qxe5 {[%clk 0:00:07]}  Bxe5 {[%clk 0:00:47]} 35. Ne4 {[%clk 0:00:08]}  Kg7 {[%clk 0:00:37]} 36. Rb6 {[%clk 0:00:04]}  Rd1 {[%clk 0:00:33]} 37. h4 {[%clk 0:00:00]}  Bd4 {[%clk 0:00:32]} 0-1

[Event "December 5 Late 2023"]
[Site "https://www.chess.com"]
[Date "2023.12.05"]
[Round "3"]
[White "Taboas Rodriguez, Daniel"]
[Black "Buchenau, Frank"]
[Result "1-0"]
[Board "104"]
[TimeControl "180+1"]
[WhiteFideId "2208466"]
[BlackFideId "4604350"]
[WhiteElo "2577"]
[BlackElo "2405"]
[WhiteTeam "ESP"]
[BlackTeam "GER"]
[WhiteClock "0:01:53"]
[BlackClock "0:00:27"]

1. d4 {[%clk 0:03:00]}  e6 {[%clk 0:03:00]} 2. Nf3 {[%clk 0:03:01]}  Nf6 {[%clk 0:03:00]} 3. c4 {[%clk 0:03:02]}  b6 {[%clk 0:03:01]} 4. Nc3 {[%clk 0:03:02]}  Bb4 {[%clk 0:03:00]} 5. Bg5 {[%clk 0:03:02]}  h6 {[%clk 0:03:00]} 6. Bh4 {[%clk 0:03:02]}  Bb7 {[%clk 0:03:00]} 7. Nd2 {[%clk 0:03:01]}  Nc6 {[%clk 0:02:58]} 8. d5 {[%clk 0:02:59]}  Ne7 {[%clk 0:02:55]} 9. e4 {[%clk 0:02:54]}  Ng6 {[%clk 0:02:52]} 10. Bg3 {[%clk 0:02:54]}  Bxc3 {[%clk 0:02:50]} 11. bxc3 {[%clk 0:02:54]}  e5 {[%clk 0:02:46]} 12. Rb1 {[%clk 0:02:46]}  d6 {[%clk 0:02:46]} 13. Bd3 {[%clk 0:02:39]}  O-O {[%clk 0:02:45]} 14. Nf1 {[%clk 0:02:40]}  Nf4 {[%clk 0:02:36]} 15. Ne3 {[%clk 0:02:39]}  Bc8 {[%clk 0:02:32]} 16. O-O {[%clk 0:02:39]}  Nd7 {[%clk 0:02:25]} 17. Re1 {[%clk 0:02:35]}  Nc5 {[%clk 0:02:19]} 18. Bc2 {[%clk 0:02:35]}  Bd7 {[%clk 0:02:17]} 19. Qf3 {[%clk 0:02:31]}  Qf6 {[%clk 0:02:13]} 20. Nf5 {[%clk 0:02:17]}  Qg5 {[%clk 0:01:28]} 21. Bh4 {[%clk 0:01:53]}  Qh5 {[%clk 0:00:27]} 22. g4 {[%clk 0:01:53]} 1-0